bitfinex/quotes_BTCUSD_20250623
["timestamp","ask_amount","ask_price","bid_price","bid_amount"]
[1750710191334,1.37800932,103880.0,103870.0,0.10275854]
[1750710191565,1.40695332,103880.0,103870.0,0.10275854]
[1750710191784,1.37800932,103880.0,103870.0,0.10275854]
[1750710192240,1.37800932,103880.0,103870.0,0.28783854]
[1750710192452,1.37900932,103880.0,103870.0,0.28783854]
[1750710194233,1.37900932,103880.0,103870.0,0.10275854]
[1750710194669,1.37900932,103880.0,103870.0,0.00245915]
[1750710194891,1.37900932,103880.0,103870.0,0.10275854]
[1750710195115,0.48835466,103880.0,103870.0,0.50922804]
[1750710195329,0.48835466,103880.0,103870.0,0.49960127]
[1750710195546,0.48835466,103880.0,103870.0,0.50922804]
[1750710195989,0.001,103880.0,103870.0,0.50922804]
[1750710196213,0.001,103880.0,103870.0,0.53816704]
[1750710196451,0.48835466,103880.0,103870.0,0.53816704]
[1750710196671,0.49060466,103880.0,103870.0,0.50922804]
[1750710197789,0.49060466,103880.0,103870.0,0.50922822]
[1750710198227,0.49060466,103880.0,103870.0,0.48034691]
[1750710198439,0.49060466,103880.0,103870.0,0.50922841]
[1750710198655,0.49060466,103880.0,103870.0,0.51885527]
[1750710199104,0.00325,103880.0,103870.0,0.51885527]
[1750710199323,0.00325,103880.0,103870.0,0.52848204]
[1750710199536,0.49060466,103880.0,103870.0,0.49960146]
[1750710199762,0.49060466,103880.0,103870.0,0.48997432]
[1750710199981,0.49060466,103880.0,103870.0,0.49960155]
[1750710200211,0.49060466,103880.0,103870.0,0.49960164]
[1750710200437,0.49060466,103880.0,103870.0,0.50922887]
[1750710201244,0.49060466,103880.0,103870.0,0.51885545]
[1750710201865,0.49060466,103880.0,103870.0,0.50922868]
[1750710202328,0.49060466,103880.0,103870.0,0.51885554]
[1750710202554,0.49060466,103880.0,103870.0,0.52848231]
[1750710204277,0.49060466,103880.0,103870.0,0.55742031]
[1750710204495,0.00551,103880.0,103870.0,0.62202031]
[1750710204992,0.54518586,103890.0,103880.0,0.22140819]
[1750710205221,0.54518586,103890.0,103880.0,0.27920819]
[1750710205429,0.54518586,103890.0,103880.0,0.37950758]
[1750710206360,0.54518586,103890.0,103880.0,0.40990758]
[1750710206575,0.54618586,103890.0,103880.0,0.37950758]
[1750710206789,0.0588312,103890.0,103880.0,0.37950758]
[1750710207002,0.54618586,103890.0,103880.0,0.37950758]
[1750710207233,0.54618586,103890.0,103880.0,0.38050758]
[1750710207906,0.0588312,103890.0,103880.0,0.38050758]
[1750710208113,0.54618586,103890.0,103880.0,0.38050758]
[1750710208329,0.54618586,103890.0,103880.0,0.41090758]
[1750710208817,0.0588312,103890.0,103880.0,0.44270758]
[1750710209492,0.0588312,103890.0,103880.0,0.49270758]
[1750710210152,0.0588312,103890.0,103880.0,0.54270758]
[1750710210357,0.0588312,103890.0,103880.0,0.54170758]
[1750710210578,0.0588312,103890.0,103880.0,0.49170758]
[1750710210801,0.54618586,103890.0,103880.0,0.67666758]
[1750710211021,0.0578312,103890.0,103880.0,0.61446758]
[1750710211241,0.0578312,103890.0,103880.0,0.61846758]
[1750710212142,0.0578312,103890.0,103880.0,0.62146758]
[1750710212588,0.54518586,103890.0,103880.0,0.62146758]
[1750710212842,0.54518586,103890.0,103880.0,0.68216758]
[1750710212843,0.0578312,103890.0,103880.0,0.68216758]
[1750710213291,0.104,103910.0,103900.0,0.27946557]
[1750710213528,0.104,103910.0,103900.0,0.37976496]
[1750710213964,0.104,103910.0,103900.0,0.34916496]
[1750710214387,0.104,103910.0,103900.0,0.38016496]
[1750710214819,0.104,103910.0,103900.0,0.38416496]
[1750710215246,0.104,103910.0,103900.0,0.57116496]
[1750710216340,0.104,103910.0,103900.0,0.57316496]
[1750710216997,0.104,103910.0,103900.0,0.62316496]
[1750710217211,0.104,103910.0,103900.0,0.67316496]
[1750710218338,0.104,103910.0,103900.0,0.62316496]
[1750710218560,0.104,103910.0,103900.0,0.67316496]
[1750710218817,0.104,103910.0,103900.0,0.62316496]
[1750710219056,0.012324,103930.0,103920.0,0.22132296]
[1750710219294,0.012324,103930.0,103920.0,0.32162235]
[1750710219780,0.49967866,103930.0,103920.0,0.32162235]
[1750710220019,0.49967866,103930.0,103920.0,0.35054335]
[1750710220264,0.49967866,103930.0,103920.0,0.3510025]
[1750710220801,0.49967866,103930.0,103920.0,0.6075625]
[1750710220802,0.044724,103930.0,103920.0,0.6075625]
[1750710221029,0.53507866,103930.0,103920.0,0.3510025]
[1750710221261,0.015324,103930.0,103920.0,0.6075625]
[1750710221498,0.50267866,103930.0,103920.0,0.6065625]
[1750710222243,0.56557866,103930.0,103920.0,0.49711696]
[1750710222489,0.56557866,103930.0,103920.0,0.51636187]
[1750710222490,0.078224,103930.0,103920.0,0.51636187]
[1750710222733,0.50267866,103930.0,103920.0,0.53560632]
[1750710222968,0.015324,103930.0,103920.0,0.53560632]
[1750710223200,0.50267866,103930.0,103920.0,0.53620632]
[1750710223705,0.50267866,103930.0,103920.0,0.53520632]
[1750710224427,0.53387866,103930.0,103920.0,0.53520632]
[1750710224650,0.077024,103930.0,103920.0,0.50633946]
[1750710224874,0.56437866,103930.0,103920.0,0.51596178]
[1750710225095,0.077024,103930.0,103920.0,0.52558419]
[1750710225315,0.56437866,103930.0,103920.0,0.30183696]
[1750710225537,0.079294,103930.0,103920.0,0.50625946]
[1750710225769,0.56664866,103930.0,103920.0,0.50625946]
[1750710226012,0.56664866,103930.0,103920.0,0.51588178]
[1750710226238,0.56664866,103930.0,103920.0,0.52550419]
[1750710226463,0.56664866,103930.0,103920.0,0.53512632]
[1750710226681,0.56664866,103930.0,103920.0,0.51588187]
[1750710227144,0.56664866,103930.0,103920.0,0.50625946]
[1750710227793,0.56664866,103930.0,103920.0,0.50625956]
[1750710228003,0.56664866,103930.0,103920.0,0.51588206]
[1750710228228,0.56664866,103930.0,103920.0,0.50625956]
[1750710228460,0.56664866,103930.0,103920.0,0.49631705]
[1750710228692,0.56664866,103930.0,103920.0,0.50593965]
[1750710228914,0.079294,103930.0,103920.0,0.51556215]
[1750710229370,0.079294,103930.0,103920.0,0.49631705]
[1750710229371,0.56664866,103930.0,103920.0,0.49631705]
[1750710229604,1.39400332,103930.0,103900.0,0.20211337]
[1750710229818,1.39400332,103930.0,103910.0,0.48492367]
[1750710229819,0.54515466,103920.0,103910.0,0.48492367]
[1750710230037,1.03250932,103920.0,103910.0,0.29245056]
[1750710230732,1.03250932,103920.0,103910.0,0.09821056]
[1750710230945,1.03250932,103920.0,103910.0,0.29277056]
[1750710231619,1.03250932,103920.0,103910.0,0.29261056]
[1750710231869,0.0322,103910.0,103900.0,0.19485997]
[1750710232118,0.51955466,103910.0,103900.0,0.48563199]
[1750710232350,0.51703466,103910.0,103900.0,0.48563199]
[1750710232793,0.51703466,103910.0,103900.0,0.49525644]
[1750710233001,0.54983466,103910.0,103900.0,0.49525644]
[1750710233445,0.55383466,103910.0,103900.0,0.51450506]
[1750710233655,0.55383466,103910.0,103900.0,0.5048808]
[1750710234159,0.55383466,103910.0,103900.0,0.32010506]
[1750710234416,0.55583466,103910.0,103900.0,0.5044008]
[1750710234632,0.55583466,103910.0,103900.0,0.49477653]
[1750710234844,0.06848,103910.0,103900.0,0.31048079]
[1750710235072,0.55583466,103910.0,103900.0,0.49465653]
[1750710235294,0.06848,103910.0,103900.0,0.32010478]
[1750710235514,0.55583466,103910.0,103900.0,0.51382478]
[1750710236173,0.55183466,103910.0,103900.0,0.60416098]
[1750710236389,0.55183466,103910.0,103900.0,0.6234096]
[1750710236614,0.55583466,103910.0,103900.0,0.63303377]
[1750710236861,0.55183466,103910.0,103900.0,0.39241921]
[1750710237124,0.55383466,103910.0,103900.0,0.58463199]
[1750710237349,0.55583466,103910.0,103900.0,0.40085653]
[1750710237563,0.55583466,103910.0,103900.0,0.59413653]
[1750710237988,0.55383466,103910.0,103900.0,0.59413662]
[1750710238418,0.55583466,103910.0,103900.0,0.59413662]
[1750710238623,0.55583466,103910.0,103900.0,0.60376116]
[1750710238835,0.55583466,103910.0,103900.0,0.58451199]
[1750710239120,0.06848,103910.0,103900.0,0.61338506]
[1750710239359,0.006,103910.0,103900.0,0.62300905]
[1750710239625,0.49335466,103910.0,103900.0,0.61338506]
[1750710239830,0.52385466,103910.0,103900.0,0.62300905]
[1750710240234,0.52385466,103910.0,103900.0,0.61338506]
[1750710240478,0.49335466,103910.0,103900.0,0.62300905]
[1750710240701,0.49335466,103910.0,103900.0,0.67300905]
[1750710240927,0.006,103910.0,103900.0,0.67300905]
[1750710241372,0.004,103910.0,103900.0,0.67300905]
[1750710241828,0.49235466,103910.0,103900.0,0.67300905]
[1750710242337,0.005,103910.0,103900.0,0.67300905]
[1750710242577,0.52475466,103910.0,103900.0,0.65376107]
[1750710242830,0.55655466,103910.0,103900.0,0.63607199]
[1750710243065,0.0652,103910.0,103900.0,0.67456951]
[1750710243289,0.0652,103910.0,103900.0,0.6841935]
[1750710243290,0.55455466,103910.0,103900.0,0.6841935]
[1750710243623,0.55455466,103910.0,103900.0,0.6745696]
[1750710243714,0.0672,103910.0,103900.0,0.68419359]
[1750710243942,0.49035466,103910.0,103900.0,0.68419359]
[1750710246818,0.003,103910.0,103900.0,0.68419359]
[1750710247038,0.49035466,103910.0,103900.0,0.48935359]
[1750710247279,0.49035466,103910.0,103900.0,0.68447359]
[1750710251116,0.49035466,103910.0,103900.0,0.6748496]
[1750710251333,0.52245466,103910.0,103900.0,0.68447359]
[1750710251542,0.55415466,103910.0,103900.0,0.68447359]
[1750710253301,0.55415466,103910.0,103900.0,0.68447304]
[1750710253563,0.003,103910.0,103900.0,0.68447304]
[1750710254281,0.49035466,103910.0,103900.0,0.68447304]
[1750710254516,0.0321,103920.0,103910.0,0.02887029]
[1750710254742,0.0649,103920.0,103910.0,0.32164393]
[1750710255013,0.55225466,103920.0,103910.0,0.31202078]
[1750710255257,0.0649,103920.0,103910.0,0.53070718]
[1750710255494,0.55225466,103920.0,103910.0,0.53070727]
[1750710255722,0.0649,103920.0,103910.0,0.53070727]
[1750710255948,0.55225466,103920.0,103910.0,0.51146078]
[1750710256174,0.55225466,103920.0,103910.0,0.52108393]
[1750710256406,0.55525466,103920.0,103910.0,0.52108393]
[1750710256870,0.55525466,103920.0,103910.0,0.51146078]
[1750710257326,0.0679,103920.0,103910.0,0.51146078]
[1750710257545,0.55525466,103920.0,103910.0,0.52108412]
[1750710257821,0.55525466,103920.0,103910.0,0.53070727]
[1750710258047,0.55525466,103920.0,103910.0,0.54033033]
[1750710258279,0.55525466,103920.0,103910.0,0.53070736]
[1750710258516,0.55525466,103920.0,103910.0,0.52108412]
[1750710258739,0.55525466,103920.0,103910.0,0.54033051]
[1750710258974,0.55525466,103920.0,103910.0,0.51146078]
[1750710259203,0.55525466,103920.0,103910.0,0.51146087]
[1750710259435,0.55525466,103920.0,103910.0,0.29933939]
[1750710259436,1.04260932,103920.0,103910.0,0.29933939]
[1750710260881,1.04260932,103920.0,103910.0,0.59768494]
[1750710260882,0.55525466,103920.0,103910.0,0.59768494]
[1750710261096,0.55525466,103920.0,103910.0,0.5880616]
[1750710261318,0.55525466,103920.0,103910.0,0.50391735]
[1750710261531,0.55525466,103920.0,103910.0,0.51354087]
[1750710261982,0.32417483,103920.0,103910.0,0.53278717]
[1750710262435,0.77886162,103920.0,103910.0,0.53278717]
[1750710262954,0.38943081,103920.0,103910.0,0.53278717]
[1750710263145,0.014594,103930.0,103920.0,0.21170065]
[1750710263377,0.79345562,103930.0,103920.0,0.31200022]
[1750710263599,0.79345562,103930.0,103920.0,0.32162263]
[1750710263818,0.40402481,103930.0,103920.0,0.32162263]
[1750710264264,0.014594,103930.0,103920.0,0.32162263]
[1750710264500,0.018594,103930.0,103920.0,0.34086708]
[1750710264958,0.40802481,103930.0,103920.0,0.34086708]
[1750710265394,0.40902481,103930.0,103920.0,0.34086671]
[1750710265812,0.40902481,103930.0,103920.0,0.32162235]
[1750710266033,0.40902481,103930.0,103920.0,0.33124458]
[1750710266470,0.019594,103930.0,103920.0,0.33124448]
[1750710266694,0.019594,103930.0,103920.0,0.32162216]
[1750710267113,0.40902481,103930.0,103920.0,0.32162216]
[1750710267329,0.019594,103930.0,103920.0,0.32162216]
[1750710267545,0.40902481,103930.0,103920.0,0.31200003]
[1750710267752,0.019594,103930.0,103920.0,0.31200003]
[1750710267976,0.019594,103930.0,103920.0,0.32162226]
[1750710268199,0.019594,103930.0,103920.0,0.33124439]
[1750710268901,0.40902481,103930.0,103920.0,0.32162216]
[1750710269130,0.40802481,103930.0,103920.0,0.31200003]
[1750710269360,0.018594,103930.0,103920.0,0.32162226]
[1750710269618,0.018594,103930.0,103920.0,0.3023779]
[1750710269832,0.82935562,103930.0,103920.0,0.33124476]
[1750710270052,0.050494,103930.0,103920.0,0.33124476]
[1750710270313,0.43992481,103930.0,103920.0,0.3120004]
[1750710270562,0.050494,103930.0,103920.0,0.321623]
[1750710270783,0.43592481,103930.0,103920.0,0.34086754]
[1750710271030,0.014594,103930.0,103920.0,0.33124541]
[1750710271262,0.40402481,103930.0,103920.0,0.34086754]
[1750710271481,0.40502481,103930.0,103920.0,0.54550754]
[1750710271702,0.015594,103930.0,103920.0,0.54550754]
[1750710272162,0.40502481,103930.0,103920.0,0.54550754]
[1750710272382,0.015594,103930.0,103920.0,0.54550754]
[1750710273045,0.50216993,103930.0,103920.0,0.54550754]
[1750710273300,0.014594,103930.0,103920.0,0.54550754]
[1750710273562,0.014594,103930.0,103920.0,0.54650754]
[1750710274002,0.014594,103930.0,103920.0,0.62350836]
[1750710274223,0.014594,103930.0,103920.0,0.62450836]
[1750710274440,0.014594,103930.0,103920.0,0.68640836]
[1750710274653,0.014594,103930.0,103920.0,0.60940754]
[1750710275531,0.014594,103930.0,103920.0,0.57820754]
[1750710275740,0.50116993,103930.0,103920.0,0.34286754]
[1750710275954,0.50116993,103930.0,103920.0,0.54986754]
[1750710275955,0.014594,103930.0,103920.0,0.54986754]
[1750710276387,0.014594,103930.0,103920.0,0.61176754]
[1750710276600,0.014594,103930.0,103920.0,0.66176754]
[1750710276833,0.50116993,103930.0,103920.0,0.63036754]
[1750710277064,0.50116993,103930.0,103920.0,0.59986754]
[1750710277285,0.014594,103930.0,103920.0,0.39286754]
[1750710277512,0.50116993,103930.0,103920.0,0.60038754]
[1750710277738,0.50116993,103930.0,103920.0,0.54076541]
[1750710277988,0.50116993,103930.0,103920.0,0.55038754]
[1750710278231,0.014594,103930.0,103920.0,0.55038754]
[1750710278447,0.50116993,103930.0,103920.0,0.55038754]
[1750710278878,0.50116993,103930.0,103920.0,0.55066754]
[1750710279329,0.50116993,103930.0,103920.0,0.65058754]
[1750710279761,0.50116993,103930.0,103920.0,0.62148022]
[1750710279976,0.53266993,103930.0,103920.0,0.63110254]
[1750710280200,0.56306993,103930.0,103920.0,0.64072477]
[1750710280421,0.56306993,103930.0,103920.0,0.6503469]
[1750710281194,0.56306993,103930.0,103920.0,0.64072477]
[1750710281422,0.56306993,103930.0,103920.0,0.62148022]
[1750710281636,0.56306993,103930.0,103920.0,0.40977939]
[1750710281862,0.56306993,103930.0,103920.0,0.61185781]
[1750710282068,0.56306993,103930.0,103920.0,0.60223512]
[1750710282341,0.56306993,103930.0,103920.0,0.6118579]
[1750710282574,0.56306993,103930.0,103920.0,0.62148059]
[1750710282799,0.56306993,103930.0,103920.0,0.60223512]
[1750710283058,0.56306993,103930.0,103920.0,0.40977939]
[1750710283323,1.04964586,103930.0,103920.0,0.20229939]
[1750710283548,1.04964586,103930.0,103920.0,0.40869939]
[1750710283764,0.56306993,103930.0,103920.0,0.40869939]
[1750710283990,0.076494,103930.0,103920.0,0.40869939]
[1750710284217,0.56306993,103930.0,103920.0,0.40869939]
[1750710284676,0.56306993,103930.0,103920.0,0.40849939]
[1750710285785,1.04964586,103930.0,103920.0,0.20229939]
[1750710286001,1.04964586,103930.0,103920.0,0.40897939]
[1750710286216,0.56306993,103930.0,103920.0,0.40897939]
[1750710286654,0.076494,103930.0,103920.0,0.40897939]
[1750710286877,0.56306993,103930.0,103920.0,0.60143512]
[1750710287097,0.56306993,103930.0,103920.0,0.41860217]
[1750710287316,0.56306993,103930.0,103920.0,0.42846486]
[1750710287554,0.56306993,103930.0,103920.0,0.40921939]
[1750710288248,0.076494,103930.0,103920.0,0.61129781]
[1750710288531,0.076494,103930.0,103920.0,0.63054235]
[1750710288532,0.014594,103930.0,103920.0,0.63054235]
[1750710289482,0.50116993,103930.0,103920.0,0.63054235]
[1750710289961,0.014594,103930.0,103920.0,0.63054235]
[1750710290193,0.50116993,103930.0,103920.0,0.63054235]
[1750710291334,0.014594,103930.0,103920.0,0.63054235]
[1750710291793,0.014594,103930.0,103920.0,0.69274235]
[1750710292040,0.50116993,103930.0,103920.0,0.69274235]
[1750710292271,0.014594,103930.0,103920.0,0.69274235]
[1750710294105,0.014594,103930.0,103920.0,0.66174235]
[1750710294563,0.40387326,103930.0,103920.0,0.66174235]
[1750710294784,0.40387326,103930.0,103920.0,0.63054235]
[1750710295260,0.014594,103930.0,103920.0,0.63054235]
[1750710295510,0.40387326,103930.0,103920.0,0.63054235]
[1750710295741,0.014594,103930.0,103920.0,0.69364235]
[1750710296015,0.40387326,103930.0,103920.0,0.69364235]
[1750710296248,0.40387326,103930.0,103920.0,0.63054235]
[1750710296733,0.40387326,103930.0,103920.0,0.68054235]
[1750710297468,0.40387326,103930.0,103920.0,0.45437781]
[1750710297697,0.90529665,103930.0,103920.0,0.3587712]
[1750710297924,0.078694,103930.0,103920.0,0.28584541]
[1750710298153,0.85725252,103930.0,103920.0,0.30509051]
[1750710298405,0.85725252,103930.0,103920.0,0.29534801]
[1750710298635,0.85725252,103930.0,103920.0,0.30497051]
[1750710299095,0.078694,103930.0,103920.0,0.29534801]
[1750710299318,0.85725252,103930.0,103920.0,0.28572541]
[1750710299554,0.85725252,103930.0,103920.0,0.29526819]
[1750710299809,0.0623,103920.0,103910.0,0.21172072]
[1750710300040,0.84085852,103920.0,103910.0,0.43142406]
[1750710300291,0.77855852,103920.0,103910.0,0.55096966]
[1750710300522,0.77855852,103920.0,103910.0,0.52209937]
[1750710300755,0.078794,103930.0,103920.0,0.20207842]
[1750710301023,0.46807326,103930.0,103920.0,0.33124486]
[1750710301267,0.014594,103930.0,103920.0,0.33124486]
[1750710301502,0.40139326,103930.0,103920.0,0.33124486]
[1750710302198,0.012114,103930.0,103920.0,0.33124486]
[1750710302421,0.40139326,103930.0,103920.0,0.33124486]
[1750710302686,0.012114,103930.0,103920.0,0.33224486]
[1750710302909,0.40139326,103930.0,103920.0,0.33224486]
[1750710304508,0.012114,103930.0,103920.0,0.33224486]
[1750710304766,0.40139326,103930.0,103920.0,0.33224486]
[1750710304990,0.012114,103930.0,103920.0,0.33224486]
[1750710305669,0.40139326,103930.0,103920.0,0.33224486]
[1750710306130,0.012114,103930.0,103920.0,0.33224486]
[1750710306581,0.40139326,103930.0,103920.0,0.33224486]
[1750710306818,0.46689326,103930.0,103920.0,0.10129939]
[1750710307058,1.19617252,103930.0,103920.0,0.001]
[1750710308243,0.85617252,103930.0,103920.0,0.20307851]
[1750710308481,0.46689326,103930.0,103920.0,0.21272]
[1750710308752,0.85617252,103930.0,103920.0,0.41479851]
[1750710308995,0.85617252,103930.0,103920.0,0.001]
[1750710309917,0.88510152,103930.0,103920.0,0.001]
[1750710310383,0.106543,103930.0,103920.0,0.19345573]
[1750710310617,0.88510152,103930.0,103920.0,0.001]
[1750710311066,0.88510152,103930.0,103920.0,0.19345573]
[1750710311325,0.88510152,103930.0,103920.0,0.001]
[1750710311805,0.106543,103930.0,103920.0,0.22232296]
[1750710312033,0.46252226,103930.0,103920.0,0.53414235]
[1750710312261,0.46252226,103930.0,103920.0,0.53414245]
[1750710312499,0.041043,103930.0,103920.0,0.54376458]
[1750710312724,0.43032226,103930.0,103920.0,0.54376458]
[1750710314779,0.041043,103930.0,103920.0,0.64376458]
[1750710315003,0.012114,103930.0,103920.0,0.64376458]
[1750710315235,0.012114,103930.0,103920.0,0.49734458]
[1750710315471,0.012114,103930.0,103920.0,0.78406458]
[1750710315705,0.40139326,103930.0,103920.0,0.78406458]
[1750710316181,0.012114,103930.0,103920.0,0.78406458]
[1750710316655,0.012114,103930.0,103920.0,1.12406458]
[1750710316878,0.012114,103930.0,103920.0,1.17406458]
[1750710317103,0.012114,103930.0,103920.0,0.78406458]
[1750710317337,0.012114,103930.0,103920.0,0.83406458]
[1750710317554,0.0301,103940.0,103930.0,0.28350167]
[1750710317778,0.0301,103940.0,103930.0,0.38380106]
[1750710317993,0.0301,103940.0,103930.0,0.43380106]
[1750710318444,0.0301,103940.0,103930.0,0.96462199]
[1750710318668,0.0301,103940.0,103930.0,0.52534273]
[1750710318891,0.0301,103940.0,103930.0,0.88762117]
[1750710319104,0.0301,103940.0,103930.0,0.96462199]
[1750710319329,0.0301,103940.0,103930.0,0.86556188]
[1750710319555,0.0301,103940.0,103930.0,1.17410273]
[1750710319784,0.0301,103940.0,103930.0,1.17010273]
[1750710320016,0.0301,103940.0,103930.0,1.17610273]
[1750710320287,0.0301,103940.0,103930.0,1.48238117]
[1750710320717,0.0301,103940.0,103930.0,1.16610273]
[1750710321158,0.0301,103940.0,103930.0,1.61038199]
[1750710321385,0.0301,103940.0,103930.0,1.23027083]
[1750710321626,0.0301,103940.0,103930.0,1.54354927]
[1750710321847,0.0301,103940.0,103930.0,1.15427001]
[1750710322081,0.0301,103940.0,103930.0,1.53754927]
[1750710322311,0.0301,103940.0,103930.0,1.14827001]
[1750710322548,0.0301,103940.0,103930.0,1.11327001]
[1750710323041,0.0301,103940.0,103930.0,1.24027083]
[1750710323278,0.0301,103940.0,103930.0,1.64948421]
[1750710324248,0.0301,103940.0,103930.0,1.16327001]
[1750710324482,0.13822094,103960.0,103950.0,0.2520201]
[1750710324705,0.13822094,103960.0,103950.0,0.38565848]
[1750710324933,0.13822094,103960.0,103950.0,0.43565848]
[1750710325155,0.13822094,103960.0,103950.0,0.48565848]
[1750710325603,0.13822094,103960.0,103950.0,0.43565848]
[1750710325821,0.13322094,103960.0,103950.0,0.37601845]
[1750710326040,0.13322094,103960.0,103950.0,0.33001845]
[1750710326937,0.13322094,103960.0,103950.0,0.39171845]
[1750710328613,0.13322094,103960.0,103950.0,0.36011845]
[1750710329072,0.13322094,103960.0,103950.0,0.33001845]
[1750710329264,0.61943514,103960.0,103950.0,0.33001845]
[1750710329753,0.13322094,103960.0,103950.0,0.33001845]
[1750710329975,0.61943514,103960.0,103950.0,0.32039909]
[1750710330201,0.19602094,103960.0,103950.0,0.56097845]
[1750710330453,1.16844934,103960.0,103950.0,0.56157845]
[1750710330674,1.16844934,103960.0,103950.0,0.55195919]
[1750710330901,1.16844934,103960.0,103950.0,0.56157873]
[1750710331130,1.16844934,103960.0,103950.0,0.4516598]
[1750710331354,0.19602094,103960.0,103950.0,0.43404007]
[1750710331581,0.19602094,103960.0,103950.0,0.55457845]
[1750710331817,0.68223514,103960.0,103950.0,0.53533946]
[1750710332037,1.16844934,103960.0,103950.0,0.33331936]
[1750710332262,1.16844934,103960.0,103950.0,0.33451936]
[1750710332716,1.16844934,103960.0,103950.0,0.23421997]
[1750710332943,1.17044934,103960.0,103950.0,0.23421997]
[1750710333385,0.68423514,103960.0,103950.0,0.44485971]
[1750710333623,0.68423514,103960.0,103950.0,0.23321997]
[1750710333856,1.17144934,103960.0,103950.0,0.23321997]
[1750710334097,1.17144934,103960.0,103950.0,0.00045997]
[1750710334391,0.0617,103940.0,103930.0,0.23955084]
[1750710334646,0.5479142,103940.0,103930.0,0.24001135]
[1750710334928,0.0617,103940.0,103930.0,0.24001135]
[1750710335170,0.5479142,103940.0,103930.0,0.24001135]
[1750710335901,0.5479142,103940.0,103930.0,0.45169209]
[1750710336139,0.5479142,103940.0,103930.0,0.45369218]
[1750710336382,0.5479142,103940.0,103930.0,0.46531385]
[1750710336644,0.5479142,103940.0,103930.0,0.57523482]
[1750710336873,0.5479142,103940.0,103930.0,0.58485556]
[1750710338018,0.50502094,103960.0,103950.0,0.21164001]
[1750710338238,0.99123514,103960.0,103950.0,0.23087909]
[1750710338462,0.68403514,103960.0,103950.0,0.23087927]
[1750710338694,0.68403514,103960.0,103950.0,0.34079802]
[1750710338908,0.19782094,103960.0,103950.0,0.34079802]
[1750710339128,0.68403514,103960.0,103950.0,0.34079802]
[1750710339428,0.68503514,103960.0,103950.0,0.34079802]
[1750710339651,0.65423514,103960.0,103950.0,0.34079802]
[1750710339876,0.65623514,103960.0,103950.0,0.34079802]
[1750710341053,0.68763514,103960.0,103950.0,0.33117885]
[1750710341304,0.20142094,103960.0,103950.0,0.34079821]
[1750710341811,0.68763514,103960.0,103950.0,0.34079821]
[1750710342312,0.68763514,103960.0,103950.0,0.44079821]
[1750710342534,0.68763514,103960.0,103950.0,0.4407983]
[1750710342975,1.17384934,103960.0,103950.0,0.42155912]
[1750710343228,0.68763514,103960.0,103950.0,0.43117866]
[1750710343473,0.68763514,103960.0,103950.0,0.44079811]
[1750710343722,1.17384934,103960.0,103950.0,0.33192]
[1750710345806,0.20142094,103960.0,103950.0,0.33192]
[1750710346038,1.17384934,103960.0,103950.0,0.52432019]
[1750710346265,1.17384934,103960.0,103950.0,0.54356001]
[1750710346490,1.17384934,103960.0,103950.0,0.55317992]
[1750710346948,1.17384934,103960.0,103950.0,0.56279965]
[1750710347138,1.17384934,103960.0,103950.0,0.55317992]
[1750710347368,1.17384934,103960.0,103950.0,0.33192]
[1750710348765,0.4055,103950.0,103930.0,0.00697135]
[1750710349017,0.5517142,103940.0,103930.0,0.00697135]
[1750710349263,1.0379284,103940.0,103930.0,0.00697135]
[1750710349515,1.0379284,103940.0,103900.0,0.30190083]
[1750710349751,1.0379284,103940.0,103910.0,0.22992]
[1750710349752,0.5474142,103920.0,103910.0,0.22992]
[1750710349984,0.5474142,103920.0,103910.0,0.45126492]
[1750710350233,0.5474142,103920.0,103910.0,0.45126501]
[1750710350477,0.5474142,103920.0,103910.0,0.52826583]
[1750710350718,0.5180142,103930.0,103920.0,0.22131391]
[1750710350971,0.5180142,103930.0,103920.0,0.33123561]
[1750710350972,0.0318,103930.0,103920.0,0.33123561]
[1750710351219,0.4862142,103930.0,103920.0,0.33123561]
[1750710352183,0.4872142,103930.0,103920.0,0.33123561]
[1750710353080,0.4882142,103930.0,103920.0,0.33123561]
[1750710354255,0.002,103930.0,103920.0,0.33123561]
[1750710354992,0.002,103930.0,103920.0,0.39463561]
[1750710355667,0.00046098,103940.0,103930.0,0.22130167]
[1750710355902,0.00046098,103940.0,103930.0,0.61384106]
[1750710356799,0.00046098,103940.0,103930.0,0.75538273]
[1750710357031,0.00046098,103940.0,103930.0,0.80538273]
[1750710357319,0.00046098,103940.0,103930.0,0.73238191]
[1750710358167,0.00046098,103940.0,103930.0,0.75772106]
[1750710358666,0.00046098,103940.0,103930.0,0.75572106]
[1750710358887,0.00046098,103940.0,103930.0,0.75672106]
[1750710359313,0.00046098,103940.0,103930.0,0.81172106]
[1750710359531,0.00046098,103940.0,103930.0,0.86172106]
[1750710359983,0.00046098,103940.0,103930.0,0.51260106]
[1750710360201,0.00046098,103940.0,103930.0,0.54500106]
[1750710360420,0.00046098,103940.0,103930.0,0.88991706]
[1750710360636,0.00046098,103940.0,103930.0,0.52391706]
[1750710360849,0.00046098,103940.0,103930.0,0.77651706]
[1750710361067,0.00046098,103940.0,103930.0,0.82651706]
[1750710361289,0.00046098,103940.0,103930.0,0.85681706]
[1750710361507,0.00046098,103940.0,103930.0,0.88921706]
[1750710361934,0.00046098,103940.0,103930.0,0.77651706]
[1750710362175,0.00046098,103940.0,103930.0,0.82651706]
[1750710362630,0.00046098,103940.0,103930.0,1.45123208]
[1750710362892,0.00046098,103940.0,103930.0,1.31955873]
[1750710363103,0.00046098,103940.0,103930.0,1.80577293]
[1750710363327,0.00046098,103940.0,103930.0,1.77877211]
[1750710363556,0.00046098,103940.0,103930.0,1.29255791]
[1750710364207,0.00046098,103940.0,103930.0,1.77877211]
[1750710364656,0.00046098,103940.0,103930.0,1.29255791]
[1750710365135,0.00046098,103940.0,103930.0,1.77877211]
[1750710365349,0.00046098,103940.0,103930.0,1.29255791]
[1750710365567,0.00046098,103940.0,103930.0,1.77877211]
[1750710366653,0.00046098,103940.0,103930.0,1.24255791]
[1750710366865,0.00046098,103940.0,103930.0,1.77877211]
[1750710367075,0.00046098,103940.0,103930.0,1.29255791]
[1750710367285,0.00046098,103940.0,103930.0,1.77877211]
[1750710367724,0.00046098,103940.0,103930.0,1.29255791]
[1750710367935,0.00046098,103940.0,103930.0,1.77877211]
[1750710368147,0.00046098,103940.0,103930.0,1.24255791]
[1750710368355,0.00046098,103940.0,103930.0,1.29255791]
[1750710368792,0.00046098,103940.0,103930.0,1.77877211]
[1750710369421,0.00046098,103940.0,103930.0,1.72877211]
[1750710369630,0.00046098,103940.0,103930.0,1.29255791]
[1750710369843,0.00046098,103940.0,103930.0,1.77877211]
[1750710370553,0.00046098,103940.0,103930.0,1.11895706]
[1750710371184,0.00046098,103940.0,103930.0,1.16895706]
[1750710371437,0.13144192,103960.0,103950.0,0.22125909]
[1750710371658,0.68145612,103960.0,103950.0,0.32155848]
[1750710372307,0.19524192,103960.0,103950.0,0.32155848]
[1750710372986,0.19524192,103960.0,103950.0,0.55339848]
[1750710376239,0.16364192,103960.0,103950.0,0.55339848]